Cogmind - Beta 13 @@@ ROGUE MODE // 2024.04.07 @ 17:51:06 Player: DURANDAL Result: Destroyed by G-34 Mercenary with Small Laser Performance ------------- Evolutions (0) 0 Regions Visited (1) 200 Robots Destroyed (17) 85 Value Destroyed (322) 322 Prototype IDs (0) 0 Alien Tech Used (0) 0 Bonus (0) 0 TOTAL SCORE: 607 Bonus ------- None Cogmind --------- Core Integrity 0/250 Matter 300/300 Energy 90/100 System Corruption 0% Temperature Cool (6) Movement Treading (240) Ox1 Location -10/Materials Parts ------- > --- POWER (1) -------- (None) > --- PROPULSION (2) --- Light Treads > --- UTILITY (2) ------ High-capacity Storage Unit Weight Redist. System > --- WEAPON (2) ------- (None) > --- INVENTORY (20) --- Aluminum Leg Aluminum Leg Heat Sink Small Storage Unit Medium Matter Pod (100) High-capacity Matter Pod (107) Transport Network Coupler Grenade Launcher Peak State ------------ > --- POWER ------------ Ion Engine > --- PROPULSION ------- Light Treads Light Treads > --- UTILITY ---------- High-capacity Storage Unit Weight Redist. System > --- WEAPON ----------- Medium Laser Assault Rifle > --- INVENTORY -------- Light Ion Engine Light Treads Aluminum Leg Aluminum Leg Heat Sink Small Storage Unit Medium Matter Pod Transport Network Coupler Small Laser Grenade Launcher Mining Laser [Rating: 9] Favorites ----------- Power Ion Engine Engine Ion Engine Propulsion Light Treads Treads Light Treads Utility High-capacity Storage Unit Device Weight Redist. System Storage High-capacity Storage Unit Weapon Medium Laser Energy Gun Medium Laser Ballistic Gun Assault Rifle Special Weapon Mining Laser Build | -11 -10 ------- Run | Yrd Mat Slots Evolved . | . . Power . | . . Propulsion . | . . Utility . | . . Weapon . | . . Parts Attached 12 | 6 6 Power 2 | 1 1 Engine 2 | 1 1 Core . | . . Reactor . | . . Propulsion 3 | 2 1 Treads 3 | 2 1 Leg . | . . Wheel . | . . Hover . | . . Flight . | . . Utility 3 | 1 2 Device 1 | . 1 Storage 2 | 1 1 Processor . | . . Hackware . | . . Protection . | . . Artifact . | . . Weapon 4 | 2 2 Energy Gun 2 | 1 1 Energy Cannon . | . . Ballistic Gun 1 | 1 . Ballistic Cannon . | . . Launcher . | . . Special Weapon 1 | . 1 Impact Weapon . | . . Slashing Weapon . | . . Piercing Weapon . | . . Special Melee Weapon . | . . Unidentified Prototypes . | . . Parts Lost 8 | . 8 Power 2 | . 2 Propulsion 2 | . 2 Utility . | . . Weapon 4 | . 4 Highest Loss Streak 6 | . 6 To Critical Strikes 1 | . 1 Average Slot Usage (%) 86 | . 86 Engine 13 | . 13 Treads 24 | . 24 Device 8 | . 8 Storage 14 | . 14 Energy Gun 13 | . 13 Ballistic Gun 10 | . 10 Naked Turns . | . . Heaviest Build 49 | 14 49 Greatest Support 46 | 40 46 Greatest Overweight (x) 5 | . 5 Average Overweight (x) . | . . Largest Inventory Capacity 20 | 8 20 Average Capacity 18 | 7 19 Most Carried 12 | 5 12 Average Carried 9 | 3 9 Final Capacity 20 | 8 20 Final Carried 8 | 4 8 Class Distribution -------------------- 100% | Mutant Dominant Class ---------------- Mutant | -10/Materials Resources | -11 -10 ----------- Run | Yrd Mat Matter Collected 624 | 250 374 Remotely . | . . Salvage Created 574 | . 574 Parts 21 | . 21 Haulers Intercepted 2 | . 2 Recyclers Shooed . | . . Parts Field Recycled . | . . Retrieved Matter . | . . Parts Self-Destructed . | . . Prevented . | . . Kills | -11 -10 ------- Run | Yrd Mat Combat Hostiles Destroyed 13 | . 13 Melee 1 | . 1 Guns 12 | . 12 Classes Destroyed 5 | . 5 Worker 1 | . 1 Hauler 2 | . 2 Recycler 1 | . 1 Swarmer 6 | . 6 Grunt 7 | . 7 Best Kill Streak 4 | . 4 Combat Bots Only 3 | . 3 Max Kills in Single Turn 1 | . 1 Gunslinging . | . . Exploded . | . . Melee 1 | . 1 Uniques/NPCs Destroyed . | . . Combat | -11 -10 -------- Run | Yrd Mat Hostile Shots Fired 131 | . 131 Missed 36 | . 36 Damage Taken 1032 | . 1032 Core 255 | . 255 Absorbed by Shields . | . . Core Remaining (%) 100 | 100 . Volleys Fired 76 | . 76 Largest 2 | . 2 Hottest 70 | . 70 Shots Fired 117 | . 117 Gun 117 | . 117 Cannon . | . . Launcher . | . . Special . | . . Kinetic 51 | . 51 Thermal 66 | . 66 Explosive . | . . Electromagnetic . | . . Robot Hit Streak 12 | . 12 Robot Miss Streak 3 | . 3 Penetration Max . | . . Secondary Targets 1 | . 1 Max Gunslinging Chain 1 | . 1 Shots Hit Robots 84 | . 84 Core Hits 31 | . 31 Critical Kills . | . . Critical Parts Destroyed . | . . Critical Strikes 2 | . 2 Burn 2 | . 2 Melee Attacks . | . . Impact . | . . Slashing . | . . Piercing . | . . Sneak Attacks . | . . Combat Hostiles . | . . Follow-up Attacks . | . . Damage Inflicted 1069 | . 1069 Guns 1053 | . 1053 Cannons . | . . Explosions . | . . Melee . | . . Ramming 16 | . 16 Kinetic 479 | . 479 Thermal 574 | . 574 Explosive . | . . Electromagnetic . | . . Impact . | . . Slashing . | . . Piercing . | . . Highest Corruption . | . . Average Corruption . | . . Corruption Purged . | . . Corruption Blocked . | . . Overload Shots . | . . Overflow Damage . | . . Projectiles . | . . Explosions . | . . Melee . | . . Knockbacks . | . . Impact . | . . Kinetic . | . . Secondary . | . . Self-Inflicted Damage . | . . Shots . | . . Rammed 6 | . 6 Targets Rammed 6 | . 6 Kicked . | . . Crushed . | . . Highest Temperature 315 | . 315 Average Temperature 67 | . 67 Received Heat Transfer 489 | . 489 Effects 1 | . 1 Energy Bleed 1 | . 1 Siege Activations . | . . Robots Corrupted . | . . Combat Hostiles . | . . Parts Fried . | . . Impact Corruptions . | . . Robots Melted . | . . Combat Hostiles . | . . Parts Melted 5 | . 5 Heat Transferred 1779 | . 1779 Parts Sabotaged . | . . Parts Stolen . | . . Parts Stripped . | . . Power Chain Reactions . | . . Alert | -11 -10 ------- Run | Yrd Mat Peak Influence 209 | . 209 Initial . | . . Average 94 | . 105 Maximum Alert Level 1 | . 1 Low Security (%) 84 | 100 82 Level 1 15 | . 17 Level 2 . | . . Level 3 . | . . Level 4 . | . . Level 5 . | . . High Security . | . . Max Security . | . . Squads Dispatched 4 | . 4 Investigation 3 | . 3 Extermination . | . . Reinforcement 1 | . 1 Assault . | . . Garrison . | . . Intercept . | . . Searches Triggered . | . . Construction Impeded . | . . Haulers Reinforced . | . . Active Scanning Responses . | . . Cargo Convoy Interrupts . | . . Stealth | -11 -10 --------- Run | Yrd Mat Distress Signals 3 | . 3 Communications Jammed . | . . Distress Signals . | . . Times Spotted 25 | . 25 Peak Tracking Total 5 | . 5 Tactical Retreats . | . . Traps | -11 -10 ------- Run | Yrd Mat Traps Triggered 1 | . 1 Indirectly . | . . Trap Hack Attempts . | . . Triggered . | . . Disarmed . | . . Reprogrammed . | . . Reused . | . . Traps Extracted . | . . Installed . | . . Triggered . | . . Machines | -11 -10 ---------- Run | Yrd Mat Machines Disabled . | . . Max in Single Turn . | . . Machines Repaired . | . . Machines Dismantled . | . . Machines Sabotaged . | . . Overloaded Fab Kills . | . . Hacking | -11 -10 --------- Run | Yrd Mat Machines Accessed 1 | . 1 Terminals 1 | . 1 Fabricators . | . . Repair Stations . | . . Recycling Units . | . . Scanalyzers . | . . Garrison Access . | . . Total Hacks 3 | . 3 Successful . | . . Failed 3 | . 3 Catastrophic 1 | . 1 Database Lockouts . | . . Manual . | . . Terminals 3 | . 3 Fabricators . | . . Repair Stations . | . . Recycling Units . | . . Scanalyzers . | . . Garrison Access . | . . Terminal Hacks . | . . Fabricator Hacks . | . . Repair Station Hacks . | . . Recycling Unit Hacks . | . . Scanalyzer . | . . Garrison Access Hacks . | . . Unauthorized Hacks . | . . Terminals . | . . Fabricators . | . . Repair Stations . | . . Recycling Units . | . . Scanalyzers . | . . Garrison Access . | . . Data Cores Recovered . | . . Used . | . . Hacking Detections 1 | . 1 Full Trace Events 1 | . 1 Feedback Events . | . . Feedback Blocked . | . . Robot Schematics Acquired . | . . Robots Built . | . . Authchips . | . . Time . | . . Total Robot Build Rating . | . . Part Schematics Acquired . | . . Parts Built . | . . Authchips . | . . Time . | . . Total Part Build Rating . | . . Parts Repaired . | . . Time . | . . Parts Recycled . | . . Recycled Matter . | . . Retrieved Matter . | . . Retrieved Components . | . . Parts Scanalyzed . | . . Part Schematics Acquired . | . . Parts Damaged . | . . Bothacking | -11 -10 ------------ Run | Yrd Mat Used RIF Installer . | . . Robots Hacked . | . . Non-combat . | . . Combat . | . . Robot Hacks Applied . | . . Relay Couplers Released . | . . Fabnet Peak Effective % . | . . Robots Rewired . | . . Allies Hacked . | . . Hacks Repelled . | . . Allies | -11 -10 -------- Run | Yrd Mat Total Allies . | . . Largest Group . | . . Highest-Rated Group . | . . Highest-Rated Ally . | . . Total Orders . | . . Ally Attacks . | . . Total Damage . | . . Kills . | . . Allies Corrupted . | . . Allies Melted . | . . Intel | -11 -10 ------- Run | Yrd Mat Robot Analysis Total . | . . Derelict Logs Recovered . | . . Drone Launches . | . . Drone Recoveries . | . . Exploration | -11 -10 ------------- Run | Yrd Mat Turns Passed 844 | 89 755 Spaces Moved 269 | 56 213 Core 15 | 14 1 Treads 254 | 42 212 Legs . | . . Wheels . | . . Hover . | . . Flight . | . . Fastest Speed 50 | 50 160 Average Speed 209 | 132 230 Slowest Speed 300 | 160 300 Overloaded Moves . | . . Propulsion Burnouts . | . . Robots Hopped . | . . Cave-ins Triggered . | . . Exploration Rate (%) 27 | 5 49 Regions Visited 1 Branch Regions . Pre-discovered Areas . | . . Known Exits Taken . | . . Unknown Exits Taken 1 | 1 . Scrap Searched . | . . Spaces Dug . | . . Terrain Destroyed . | . . Melee . | . . Projectile . | . . AOE . | . . Terrain Rammed . | . . Walls Destroyed . | . . Machines Disabled . | . . Actions | -11 -10 --------- Run | Yrd Mat Total 423 | 71 352 Wait 42 | . 42 Move 268 | 55 213 Hop . | . . Pick Up 19 | 10 9 Fast Attach . | . . Attach 11 | 6 5 Detach . | . . Swap 1 | . 1 Drop . | . . Fire 76 | . 76 Melee . | . . Ram . | . . Kick . | . . Crush 6 | . 6 Escape Stasis . | . . Rewire . | . . Trap . | . . Miscellaneous . | . . Route ------- -11/Scrapyard -10/Materials (discovered 2 exits: [*Mat] / [*Min]) History --------- Turn | Location | Event 7 | -11/Scrapyard | Discovered new exit (range 15) 90 | -11/Scrapyard | Entered Materials 255 | -10/Materials | Discovered new exit (range 6) 309 | -10/Materials | Build established: Mutant 547 | -10/Materials | Discovered new exit (range 16) 700 | -10/Materials | Derelicts attacked the area 816 | -10/Materials | Core integrity fell below 50% 826 | -10/Materials | Core integrity fell below 20% 845 | -10/Materials | Destroyed by G-34 Mercenary with Small Laser Last Messages --------------- 00702_ K-01 Serf destroyed. 00706_ Acquired 20 matter. 00711_ Acquired 10 matter. 00766_ Acquired 81 matter. 00787_ W-16 Scout sends out distress signal. 00795_ Lgt. Treads destroyed. 00798_ Med. Laser destroyed. 00804_ G-34 Mercenary destroyed. 00811_ Ion Engine destroyed. 00824_ Sml. Laser destroyed. 00831_ Mining Laser destroyed. 00833_ R-06 Scavenger collects Ion Engine. 00834_ Slammed into G-47 Trooper. 00836_ K-01 Serf suffers critical hit (Burn). 00836_ K-01 Serf destroyed. 00837_ R-06 Scavenger collects Aluminum Leg. 00838_ Slammed into G-47 Trooper. 00841_ G-47 Trooper destroyed. 00842_ Acquired 39 matter. 00843_ Lgt. Ion Engine destroyed. Map ----- +----------------------------------------------------+ | ?????????????????????????????????? # | | ??????????????????????????????????? / | | ????????????????????????????????????# | | ????????????????????????????##?????## | | ???????????????????????????? ##### | | ????????????????????????????? | | ????????????????????????????? | | ????????????????????????????? | | ????????####+####??????????????????# | | ???????# #??????????????????## | | ???????#""" #???????????????????# | | ???????#""" ! #???????????????????# | | ???????#""" #???????????????????# | | ???????# #????????????????#### | | ???????# = """ #????????????????#" | | ???????# R" #???##############"" | | ???????# """ #???? # #| ! | | ???????# #???? # """ #"" < | | ???????#/####+###????? # """?#! | | ???????# #??# #??????? #= """?#"" | | ???????# #??# #???????? ?? ??#" | | ???????# #??# #???????? ?? ??#### | | ######## #### ##########+####+####### | | #!! # ^ | | # ! w ^ * % | | #! # %@ % % | | # # %####g## ###+#### | | # # ## ## #??? ?? | | # # ##% ## #????" | | # + + ## #????? | | # # ## ## #?????? | | # # ## ## #??????? | | # # ## ## #??????? | | # # ## ## #??????? | | # # ####### #??????? | | ####### #?????# #??????? | | ? ??# #?????# ########??????? | | # ?# #?????# +?????????????? | | # """?# ####### #?????????????? | | # """ # # ## ??????????????? | | # """ # # #?# ????????????????? | | # + #= #??????????????????????? | | # """ # # #??????????????????????? | | # """ # + #??????????????????????? | | # """?# #"" #??????????????????????? | | # ?# < #"T #??????????????????????? | | ? ??# #"" #??????????????????????? | | # ??##### #??????????????????????? | | ###???????######??????????????????????? | | ??????????????????????????????????????? | +----------------------------------------------------+ Best States ------------- Heat Dissipation 25 Energy Generation 10 Energy Capacity 250 Matter Stores 300 Matter Capacity 300 Sight Range 16 Terrain Scan Density 10 Additional Mass Support 6 Evasion (%) 40 Recoil Reduction 2 Item Schematics ----------------- None Robot Schematics ------------------ None Fabricated ------------ Nothing Alien Tech Used ----------------- None Achievements -------------- None Challenges ------------ None Game ------ Seed SigixSubatomicTerrabomb Manual? 0 Play Time 00:06:54 Cumulative 11.3 hours Start 2024.04.07 @ 17:45:14 End 2024.04.07 @ 17:51:06 Sessions 1 Manual Loads 0 Difficulty Rogue Special Mode None Game No. 22 Rogue 22 Adventurer 0 Explorer 0 Win Type - Total 0 Types 0/0/0/0/0/0/0/0/0 Lore% 15 Gallery% 13 Achievement% 14 Wizard Run 0 Options --------- Layout 1 ASCII 0 Keyboard 0 Movement Numpad Keybinds 0 Fullscreen 1 Font 24/Smallcaps Map View 50x35 Zoom Use 0% Tactical HUD 1 Map Filters NONE Filters NONE Steam 1 RUN: 8cbffbdd-15c6-428a-979f-0d51047daae9